Workbook

Sheet Таймшит_образец
I1: =IF(#REF!="ВЭС 610",IF(SUM(H2:H4)=100,1,0),1) -> 
F2: =(E2+SUM(D1:E1)*150/610) -> 0 | H2: =$F2/SUM(F2:F4)*100 ->  | I2: =IF(#REF!="ВЭС 610",IF(SUM(H3:H4)=100,1,0),1) -> 
F3: =(E3+SUM(D1:E1)*200/610) -> 0 | H3: =$F3/SUM(F2:F4)*100 ->  | I3: =IF(#REF!="ВЭС 610",IF(SUM(H4:H4)=100,1,0),1) -> 
F4: =(E4+SUM(D1:E1)*260/610) -> 0 | H4: =$F4/SUM(F2:F4)*100 ->  | I4: =IF(#REF!="ВЭС 610",IF(SUM(#REF!)=100,1,0),1) -> 
I9: =IF(MIN(I17:I28)=0,"ОШИБКА","ОК") -> 
D12: кадры | E12: кадры | F12: ПЭО | H12: ПЭО
A14: Подразделение | B14: Должность | C14: ФИО | D14: Отработано всего часов в месяц (без учета неявок) | E14: Кол-во часов в командировке | F14: Расчет весовой процентной ставки | G14: Начальная дата | H14: Конечная дата | I14: Проверка
G15: Код СПП-элемента | H15: Весовая процентная ставка
A16: 1 | B16: 2 | C16: 3 | D16: 8 | E16: 9 | F16: 10 | G16: 11 | H16: 12 | I16: 13
A17: Исполнительный блок | B17: Ведущий специалист | C17: Иванов Иван Иванович | D17: 50 | E17: 31.75 | G17: 01.04.2017 | H17: 30.04.2017 | I17: =IF(#REF!="ВЭС 610",IF(SUM(H18:H20)=100,1,0),1) -> 
E18: 23.5 | F18: =(E18+SUM(D17:E17)*150/610) -> 43.60245902 | H18: =$F18/SUM(F18:F20)*100 -> 41.4275145 | I18: =IF(#REF!="ВЭС 610",IF(SUM(H19:H21)=100,1,0),1) -> 
F19: =(E19+SUM(D17:E17)*200/610) -> 26.80327869 | H19: =$F19/SUM(F18:F20)*100 -> 25.46629804 | I19: =IF(#REF!="ВЭС 610",IF(SUM(H20:H22)=100,1,0),1) -> 
F20: =(E20+SUM(D17:E17)*260/610) -> 34.8442623 | H20: =$F20/SUM(F18:F20)*100 -> 33.10618745 | I20: =IF(#REF!="ВЭС 610",IF(SUM(H21:H23)=100,1,0),1) -> 
A21: Аппарат советников | B21: Ведущий специалист | C21: Иванов Иван Иванович | D21: 79 | E21: 31.75 | G21: 01.04.2017 | H21: 30.04.2017 | I21: =IF(#REF!="ВЭС 610",IF(SUM(H22:H24)=100,1,0),1) -> 
E22: 23.5 | F22: =(E22+SUM(D21:E21)*150/610) -> 50.73360656 | H22: =$F22/SUM(F22:F24)*100 -> 37.79039595 | I22: =IF(#REF!="ВЭС 610",IF(SUM(H23:H25)=100,1,0),1) -> 
F23: =(E23+SUM(D21:E21)*200/610) -> 36.31147541 | H23: =$F23/SUM(F22:F24)*100 -> 27.04765394 | I23: =IF(#REF!="ВЭС 610",IF(SUM(H24:H26)=100,1,0),1) -> 
F24: =(E24+SUM(D21:E21)*260/610) -> 47.20491803 | H24: =$F24/SUM(F22:F24)*100 -> 35.16195012 | I24: =IF(#REF!="ВЭС 610",IF(SUM(H25:H27)=100,1,0),1) -> 
A25: Исполнительный блок | B25: Ведущий специалист | C25: Иванов Иван Иванович | D25: 79 | E25: 31.75 | G25: 01.04.2017 | H25: 30.04.2017 | I25: =IF(#REF!="ВЭС 610",IF(SUM(H26:H28)=100,1,0),1) -> 
E26: 23.5 | F26: =(E26+SUM(D25:E25)*150/610) -> 50.73360656 | H26: =$F26/SUM(F26:F28)*100 -> 37.79039595 | I26: =IF(#REF!="ВЭС 610",IF(SUM(H27:H28)=100,1,0),1) -> 
F27: =(E27+SUM(D25:E25)*200/610) -> 36.31147541 | H27: =$F27/SUM(F26:F28)*100 -> 27.04765394 | I27: =IF(#REF!="ВЭС 610",IF(SUM(H28:H28)=100,1,0),1) -> 
F28: =(E28+SUM(D25:E25)*260/610) -> 47.20491803 | H28: =$F28/SUM(F26:F28)*100 -> 35.16195012 | I28: =IF(#REF!="ВЭС 610",IF(SUM(#REF!)=100,1,0),1) -> 
A31: Ответственный сотрудник
C32: подпись

Sheet Лист3
I1: =IF(#REF!="ВЭС 610",IF(SUM(H2:H4)=100,1,0),1) -> 
F2: =(E2+SUM(D1:E1)*150/610) -> 0 | H2: =$F2/SUM(F2:F4)*100 ->  | I2: =IF(#REF!="ВЭС 610",IF(SUM(H3:H4)=100,1,0),1) -> 
F3: =(E3+SUM(D1:E1)*200/610) -> 0 | H3: =$F3/SUM(F2:F4)*100 ->  | I3: =IF(#REF!="ВЭС 610",IF(SUM(H4:H4)=100,1,0),1) -> 
F4: =(E4+SUM(D1:E1)*260/610) -> 0 | H4: =$F4/SUM(F2:F4)*100 ->  | I4: =IF(#REF!="ВЭС 610",IF(SUM(#REF!)=100,1,0),1) -> 
